[Event "Titled Tuesday Blitz March 29 Late 2022"]
[White "Suder, Jakub"]
[Black "Bordi, Kevin"]
[WhiteFideId "1195310"]
[BlackFideId "621862"]
[WhiteElo "2058"]
[BlackElo "2803"]
[Result "0-1"]
[Round "04"]
[TimeControl "180+1"]
[Date "2022.03.29"]
[WhiteClock "0:00:05"]
[BlackClock "0:00:03"]

1. d4 {[%clk 0:03:00]}  d5 {[%clk 0:03:00]} 2. c4 {[%clk 0:02:59]}  c6 {[%clk 0:03:01]} 3. cxd5 {[%clk 0:02:56]}  cxd5 {[%clk 0:03:01]} 4. Bg5 {[%clk 0:02:57]}  Nf6 {[%clk 0:03:02]} 5. Bxf6 {[%clk 0:02:56]}  gxf6 {[%clk 0:03:02]} 6. Nc3 {[%clk 0:02:56]}  Nc6 {[%clk 0:03:03]} 7. e3 {[%clk 0:02:54]}  Qb6 {[%clk 0:03:01]} 8. Qd2 {[%clk 0:02:53]}  e6 {[%clk 0:02:58]} 9. Bd3 {[%clk 0:02:52]}  f5 {[%clk 0:02:58]} 10. f4 {[%clk 0:02:52]}  Bd7 {[%clk 0:02:54]} 11. Nf3 {[%clk 0:02:52]}  Bg7 {[%clk 0:02:53]} 12. O-O {[%clk 0:02:47]}  O-O {[%clk 0:02:53]} 13. h3 {[%clk 0:02:47]}  Rac8 {[%clk 0:02:42]} 14. g4 {[%clk 0:02:47]}  Ne7 {[%clk 0:02:36]} 15. Kh2 {[%clk 0:02:33]}  Qd6 {[%clk 0:02:33]} 16. Rg1 {[%clk 0:02:30]}  fxg4 {[%clk 0:02:32]} 17. Rxg4 {[%clk 0:02:18]}  f5 {[%clk 0:02:31]} 18. Rg2 {[%clk 0:02:14]}  Ng6 {[%clk 0:02:25]} 19. Rag1 {[%clk 0:02:14]}  Kh8 {[%clk 0:02:15]} 20. Qf2 {[%clk 0:02:06]}  Rg8 {[%clk 0:02:14]} 21. Ng5 {[%clk 0:02:05]}  Qe7 {[%clk 0:02:06]} 22. Nxh7 {[%clk 0:02:04]}  Bxd4 {[%clk 0:01:43]} 23. Ng5 {[%clk 0:01:49]}  Bf6 {[%clk 0:00:38]} 24. Qf3 {[%clk 0:01:39]}  Rg7 {[%clk 0:00:33]} 25. Nxe6 {[%clk 0:01:30]}  Qxe6 {[%clk 0:00:33]} 26. Rxg6 {[%clk 0:01:23]}  Be8 {[%clk 0:00:26]} 27. Rh6+ {[%clk 0:00:55]}  Kg8 {[%clk 0:00:18]} 28. Nxd5 {[%clk 0:00:49]}  Rxg1 {[%clk 0:00:14]} 29. Nxf6+ {[%clk 0:00:44]}  Kg7 {[%clk 0:00:14]} 30. Rh7+ {[%clk 0:00:33]}  Kxf6 {[%clk 0:00:14]} 31. Qxb7 {[%clk 0:00:26]}  Rcc1 {[%clk 0:00:04]} 32. Bc4 {[%clk 0:00:09]}  Rh1+ {[%clk 0:00:03]} 33. Kg2 {[%clk 0:00:10]}  Bc6+ {[%clk 0:00:03]} 34. Bd5 {[%clk 0:00:05]}  Qxd5+ {[%clk 0:00:03]} 35. Kf2 {[%clk 0:00:05]}  Qf3# {[%clk 0:00:03]} 0-1


[Site "https://www.chess.com"]

[Event "Titled Tuesday Blitz March 29 Late 2022"]
[White "Szente Varga, Fruzsina"]
[Black "Omariev, Maksim"]
[WhiteFideId "712264"]
[BlackFideId "4193423"]
[WhiteElo "1994"]
[BlackElo "2509"]
[Result "0-1"]
[Round "04"]
[TimeControl "180+1"]
[Date "2022.03.30"]
[WhiteClock "0:00:15"]
[BlackClock "0:00:17"]

1. e4 {[%clk 0:03:00]}  c5 {[%clk 0:02:59]} 2. Nf3 {[%clk 0:03:00]}  d6 {[%clk 0:02:58]} 3. d4 {[%clk 0:03:00]}  cxd4 {[%clk 0:02:59]} 4. Qxd4 {[%clk 0:03:00]}  a6 {[%clk 0:02:59]} 5. c4 {[%clk 0:02:57]}  Nc6 {[%clk 0:02:58]} 6. Qd3 {[%clk 0:02:57]}  Nf6 {[%clk 0:02:57]} 7. Nc3 {[%clk 0:02:58]}  g6 {[%clk 0:02:56]} 8. Be2 {[%clk 0:02:57]}  Bg7 {[%clk 0:02:56]} 9. O-O {[%clk 0:02:57]}  O-O {[%clk 0:02:57]} 10. h3 {[%clk 0:02:57]}  Nd7 {[%clk 0:02:43]} 11. Be3 {[%clk 0:02:51]}  Nc5 {[%clk 0:02:43]} 12. Qb1 {[%clk 0:02:18]}  b6 {[%clk 0:02:29]} 13. Rd1 {[%clk 0:02:04]}  Bb7 {[%clk 0:02:29]} 14. a3 {[%clk 0:01:57]}  Nb3 {[%clk 0:02:13]} 15. Ra2 {[%clk 0:01:57]}  Rc8 {[%clk 0:02:13]} 16. Qc2 {[%clk 0:01:56]}  Nca5 {[%clk 0:02:05]} 17. Nd5 {[%clk 0:01:51]}  Bxd5 {[%clk 0:01:57]} 18. exd5 {[%clk 0:01:46]}  b5 {[%clk 0:01:56]} 19. c5 {[%clk 0:01:15]}  dxc5 {[%clk 0:01:49]} 20. a4 {[%clk 0:01:10]}  c4 {[%clk 0:01:42]} 21. axb5 {[%clk 0:01:10]}  axb5 {[%clk 0:01:43]} 22. Bg5 {[%clk 0:00:50]}  Qd6 {[%clk 0:01:36]} 23. Bh4 {[%clk 0:00:44]}  Rfd8 {[%clk 0:01:36]} 24. Bg3 {[%clk 0:00:42]}  Qb6 {[%clk 0:01:36]} 25. Qe4 {[%clk 0:00:39]}  Rd7 {[%clk 0:01:34]} 26. Ne5 {[%clk 0:00:37]}  Bxe5 {[%clk 0:01:32]} 27. Bxe5 {[%clk 0:00:36]}  Rcd8 {[%clk 0:01:32]} 28. Bc3 {[%clk 0:00:35]}  b4 {[%clk 0:01:31]} 29. Bd4 {[%clk 0:00:29]}  Nxd4 {[%clk 0:01:29]} 30. Rxd4 {[%clk 0:00:30]}  Nb3 {[%clk 0:01:10]} 31. Rd1 {[%clk 0:00:23]}  c3 {[%clk 0:01:10]} 32. bxc3 {[%clk 0:00:22]}  bxc3 {[%clk 0:01:11]} 33. Rc2 {[%clk 0:00:23]}  Nd2 {[%clk 0:01:09]} 34. Qf4 {[%clk 0:00:19]}  Qb3 {[%clk 0:00:54]} 35. Rdc1 {[%clk 0:00:19]}  Nb1 {[%clk 0:00:45]} 36. Bf3 {[%clk 0:00:19]}  Rd6 {[%clk 0:00:22]} 37. h4 {[%clk 0:00:19]}  h5 {[%clk 0:00:21]} 38. Qg5 {[%clk 0:00:19]}  Kh7 {[%clk 0:00:20]} 39. Qxe7 {[%clk 0:00:19]}  R8d7 {[%clk 0:00:19]} 40. Qg5 {[%clk 0:00:18]}  Rc7 {[%clk 0:00:17]} 41. g4 {[%clk 0:00:18]}  hxg4 {[%clk 0:00:17]} 42. Bxg4 {[%clk 0:00:18]}  Na3 {[%clk 0:00:17]} 43. Re2 {[%clk 0:00:16]}  c2 {[%clk 0:00:16]} 44. h5 {[%clk 0:00:16]}  Qb1 {[%clk 0:00:14]} 45. hxg6+ {[%clk 0:00:14]}  Rxg6 {[%clk 0:00:15]} 46. Qh4+ {[%clk 0:00:15]}  Kg7 {[%clk 0:00:15]} 47. Ree1 {[%clk 0:00:13]}  Rc4 {[%clk 0:00:14]} 48. f3 {[%clk 0:00:12]}  Qb6+ {[%clk 0:00:14]} 49. Qf2 {[%clk 0:00:12]}  Qxf2+ {[%clk 0:00:11]} 50. Kxf2 {[%clk 0:00:13]}  Rd4 {[%clk 0:00:11]} 51. Re3 {[%clk 0:00:12]}  Rd1 {[%clk 0:00:11]} 52. Re1 {[%clk 0:00:12]}  Rd2+ {[%clk 0:00:10]} 53. Ke3 {[%clk 0:00:13]}  Rxd5 {[%clk 0:00:11]} 54. Ke4 {[%clk 0:00:12]}  Rd2 {[%clk 0:00:10]} 55. Re3 {[%clk 0:00:12]}  Rd1 {[%clk 0:00:09]} 56. Re1 {[%clk 0:00:12]}  Rxe1+ {[%clk 0:00:09]} 57. Rxe1 {[%clk 0:00:12]}  Rd6 {[%clk 0:00:10]} 58. Rc1 {[%clk 0:00:12]}  Rd1 {[%clk 0:00:11]} 59. Rxc2 {[%clk 0:00:11]}  Nxc2 {[%clk 0:00:11]} 60. f4 {[%clk 0:00:11]}  Rd4+ {[%clk 0:00:12]} 61. Kf3 {[%clk 0:00:11]}  f6 {[%clk 0:00:11]} 62. Bf5 {[%clk 0:00:12]}  Nb4 {[%clk 0:00:11]} 63. Ke3 {[%clk 0:00:12]}  Rc4 {[%clk 0:00:11]} 64. Be4 {[%clk 0:00:12]}  Rc5 {[%clk 0:00:11]} 65. f5 {[%clk 0:00:12]}  Rc7 {[%clk 0:00:11]} 66. Kf4 {[%clk 0:00:13]}  Na6 {[%clk 0:00:12]} 67. Bd5 {[%clk 0:00:13]}  Nc5 {[%clk 0:00:13]} 68. Bc4 {[%clk 0:00:13]}  Nd7 {[%clk 0:00:13]} 69. Be6 {[%clk 0:00:13]}  Ne5 {[%clk 0:00:14]} 70. Ke4 {[%clk 0:00:14]}  Kf8 {[%clk 0:00:14]} 71. Kf4 {[%clk 0:00:14]}  Ke7 {[%clk 0:00:15]} 72. Kg3 {[%clk 0:00:14]}  Kd6 {[%clk 0:00:16]} 73. Kh4 {[%clk 0:00:15]}  Rc3 {[%clk 0:00:17]} 74. Kh5 {[%clk 0:00:15]}  Ke7 {[%clk 0:00:17]} 75. Kh4 {[%clk 0:00:15]}  Rc1 {[%clk 0:00:17]} 0-1


[Site "https://www.chess.com"]

[Event "Titled Tuesday Blitz March 29 Late 2022"]
[White "Tanenbaum, Zachary"]
[Black "Prohorov, Olexandr"]
[WhiteFideId "2060850"]
[BlackFideId "14105578"]
[WhiteElo "2168"]
[BlackElo "1993"]
[Result "0-1"]
[Round "04"]
[TimeControl "180+1"]
[Date "2022.03.30"]
[WhiteClock "0:00:15"]
[BlackClock "0:00:14"]

1. e4 {[%clk 0:02:45]}  c5 {[%clk 0:02:58]} 2. Nf3 {[%clk 0:02:45]}  d6 {[%clk 0:02:58]} 3. d4 {[%clk 0:02:45]}  cxd4 {[%clk 0:02:59]} 4. Nxd4 {[%clk 0:02:46]}  Nf6 {[%clk 0:02:59]} 5. Nc3 {[%clk 0:02:46]}  a6 {[%clk 0:02:59]} 6. Be3 {[%clk 0:02:46]}  g6 {[%clk 0:02:56]} 7. f3 {[%clk 0:02:45]}  Bg7 {[%clk 0:02:56]} 8. g4 {[%clk 0:02:44]}  h5 {[%clk 0:02:47]} 9. g5 {[%clk 0:02:41]}  Nfd7 {[%clk 0:02:47]} 10. Qd2 {[%clk 0:02:41]}  Nc6 {[%clk 0:02:44]} 11. O-O-O {[%clk 0:02:39]}  O-O {[%clk 0:02:17]} 12. f4 {[%clk 0:02:37]}  Qa5 {[%clk 0:02:06]} 13. Kb1 {[%clk 0:02:28]}  Nxd4 {[%clk 0:02:01]} 14. Bxd4 {[%clk 0:02:28]}  e5 {[%clk 0:02:02]} 15. Be3 {[%clk 0:02:14]}  exf4 {[%clk 0:01:59]} 16. Bxf4 {[%clk 0:02:15]}  Nc5 {[%clk 0:01:43]} 17. Nd5 {[%clk 0:00:59]}  Qxd2 {[%clk 0:01:39]} 18. Rxd2 {[%clk 0:00:53]}  Nxe4 {[%clk 0:01:40]} 19. Re2 {[%clk 0:00:51]}  Bg4 {[%clk 0:01:33]} 20. Re3 {[%clk 0:00:42]}  Nf2 {[%clk 0:01:22]} 21. Rg1 {[%clk 0:00:40]}  Rfe8 {[%clk 0:01:13]} 22. Ne7+ {[%clk 0:00:16]}  Kh7 {[%clk 0:01:08]} 23. Bd3 {[%clk 0:00:14]}  Nxd3 {[%clk 0:01:02]} 24. cxd3 {[%clk 0:00:13]}  Rad8 {[%clk 0:00:56]} 25. Rge1 {[%clk 0:00:12]}  Rd7 {[%clk 0:00:47]} 26. Nd5 {[%clk 0:00:12]}  Re6 {[%clk 0:00:44]} 27. Rxe6 {[%clk 0:00:08]}  fxe6 {[%clk 0:00:40]} 28. Nb6 {[%clk 0:00:07]}  Rd8 {[%clk 0:00:28]} 29. Rc1 {[%clk 0:00:07]}  Bf5 {[%clk 0:00:24]} 30. Rc7 {[%clk 0:00:05]}  Bxd3+ {[%clk 0:00:21]} 31. Kc1 {[%clk 0:00:06]}  Be4 {[%clk 0:00:21]} 32. Nc4 {[%clk 0:00:03]}  e5 {[%clk 0:00:20]} 33. Be3 {[%clk 0:00:03]}  Bc6 {[%clk 0:00:19]} 34. Na5 {[%clk 0:00:02]}  Rd7 {[%clk 0:00:15]} 35. Rc8 {[%clk 0:00:01]}  d5 {[%clk 0:00:14]} 36. Nb3 {[%clk 0:00:01]}  d4 {[%clk 0:00:09]} 37. Bd2 {[%clk 0:00:01]}  e4 {[%clk 0:00:09]} 38. Nc5 {[%clk 0:00:02]}  Rf7 {[%clk 0:00:08]} 39. Ne6 {[%clk 0:00:02]}  Rf1+ {[%clk 0:00:08]} 40. Kc2 {[%clk 0:00:02]}  e3 {[%clk 0:00:08]} 41. Bb4 {[%clk 0:00:02]}  Be4+ {[%clk 0:00:07]} 42. Kb3 {[%clk 0:00:01]}  Rf7 {[%clk 0:00:06]} 43. Re8 {[%clk 0:00:01]}  e2 {[%clk 0:00:07]} 44. Ka3 {[%clk 0:00:02]}  d3 {[%clk 0:00:08]} 45. Nd4 {[%clk 0:00:02]}  Bd5 {[%clk 0:00:06]} 46. Nxe2 {[%clk 0:00:02]}  dxe2 {[%clk 0:00:06]} 47. Rxe2 {[%clk 0:00:03]}  a5 {[%clk 0:00:06]} 48. Bxa5 {[%clk 0:00:02]}  Bc6 {[%clk 0:00:06]} 49. Bb4 {[%clk 0:00:03]}  Rf3+ {[%clk 0:00:06]} 50. b3 {[%clk 0:00:03]}  Rf7 {[%clk 0:00:06]} 51. Re7 {[%clk 0:00:03]}  Rxe7 {[%clk 0:00:06]} 52. Bxe7 {[%clk 0:00:04]}  Be5 {[%clk 0:00:06]} 53. h4 {[%clk 0:00:03]}  Bg3 {[%clk 0:00:06]} 54. Kb4 {[%clk 0:00:04]}  Bxh4 {[%clk 0:00:07]} 55. a4 {[%clk 0:00:04]}  Be1+ {[%clk 0:00:07]} 56. Kc5 {[%clk 0:00:04]}  h4 {[%clk 0:00:08]} 57. Bd6 {[%clk 0:00:04]}  h3 {[%clk 0:00:08]} 58. a5 {[%clk 0:00:04]}  Bg2 {[%clk 0:00:07]} 59. b4 {[%clk 0:00:04]}  Kg8 {[%clk 0:00:08]} 60. b5 {[%clk 0:00:04]}  Bf2+ {[%clk 0:00:08]} 61. Kc4 {[%clk 0:00:03]}  Kf7 {[%clk 0:00:08]} 62. Be5 {[%clk 0:00:03]}  Ke6 {[%clk 0:00:08]} 63. Bc7 {[%clk 0:00:04]}  Kd7 {[%clk 0:00:08]} 64. Bb8 {[%clk 0:00:04]}  Bg1 {[%clk 0:00:09]} 65. Kb4 {[%clk 0:00:04]}  h2 {[%clk 0:00:09]} 66. Bxh2 {[%clk 0:00:04]}  Bxh2 {[%clk 0:00:10]} 67. Kc5 {[%clk 0:00:04]}  Bg1+ {[%clk 0:00:10]} 68. Kb4 {[%clk 0:00:05]}  Kc7 {[%clk 0:00:10]} 69. a6 {[%clk 0:00:05]}  bxa6 {[%clk 0:00:10]} 70. bxa6 {[%clk 0:00:06]}  Kb6 {[%clk 0:00:09]} 71. Kc4 {[%clk 0:00:07]}  Kxa6 {[%clk 0:00:09]} 72. Kd3 {[%clk 0:00:08]}  Bh2 {[%clk 0:00:09]} 73. Ke2 {[%clk 0:00:08]}  Bf4 {[%clk 0:00:09]} 74. Kf2 {[%clk 0:00:09]}  Be4 {[%clk 0:00:09]} 75. Kg1 {[%clk 0:00:10]}  Bxg5 {[%clk 0:00:10]} 76. Kh2 {[%clk 0:00:11]}  Kb5 {[%clk 0:00:10]} 77. Kh3 {[%clk 0:00:12]}  Kc5 {[%clk 0:00:11]} 78. Kg4 {[%clk 0:00:12]}  Bf6 {[%clk 0:00:11]} 79. Kf4 {[%clk 0:00:12]}  Bf5 {[%clk 0:00:12]} 80. Kg3 {[%clk 0:00:13]}  Kd5 {[%clk 0:00:13]} 81. Kf4 {[%clk 0:00:12]}  Kd4 {[%clk 0:00:13]} 82. Kg3 {[%clk 0:00:13]}  Ke3 {[%clk 0:00:14]} 83. Kh2 {[%clk 0:00:13]}  g5 {[%clk 0:00:14]} 84. Kg3 {[%clk 0:00:14]}  Be5+ {[%clk 0:00:14]} 85. Kg2 {[%clk 0:00:14]}  g4 {[%clk 0:00:15]} 86. Kh1 {[%clk 0:00:14]}  Kf3 {[%clk 0:00:13]} 87. Kg1 {[%clk 0:00:14]}  g3 {[%clk 0:00:14]} 88. Kf1 {[%clk 0:00:14]}  g2+ {[%clk 0:00:14]} 89. Kg1 {[%clk 0:00:15]}  Bd4+ {[%clk 0:00:14]} 90. Kh2 {[%clk 0:00:15]}  g1=Q# {[%clk 0:00:14]} 0-1


[Site "https://www.chess.com"]

[Event "Titled Tuesday Blitz March 29 Late 2022"]
[White "Torres Hernandez, Leslie Carolin"]
[Black "Almagro Mazariegos, Sebastian"]
[WhiteFideId "8400504"]
[BlackFideId "2221640"]
[WhiteElo "1920"]
[BlackElo "2273"]
[Result "0-1"]
[Round "04"]
[TimeControl "180+1"]
[Date "2022.03.30"]
[WhiteClock "0:01:53"]
[BlackClock "0:01:39"]

1. e4 {[%clk 0:03:00]}  c5 {[%clk 0:02:59]} 2. Nf3 {[%clk 0:03:01]}  d6 {[%clk 0:03:00]} 3. Bb5+ {[%clk 0:03:00]}  Bd7 {[%clk 0:02:59]} 4. Bxd7+ {[%clk 0:02:59]}  Qxd7 {[%clk 0:03:00]} 5. O-O {[%clk 0:02:58]}  Nc6 {[%clk 0:03:01]} 6. c4 {[%clk 0:02:55]}  Nf6 {[%clk 0:03:00]} 7. Nc3 {[%clk 0:02:56]}  e6 {[%clk 0:03:00]} 8. d4 {[%clk 0:02:54]}  cxd4 {[%clk 0:03:00]} 9. Nxd4 {[%clk 0:02:55]}  Nxd4 {[%clk 0:03:00]} 10. Qxd4 {[%clk 0:02:56]}  a6 {[%clk 0:03:00]} 11. Bg5 {[%clk 0:02:52]}  Be7 {[%clk 0:03:00]} 12. Rac1 {[%clk 0:02:50]}  Rc8 {[%clk 0:02:59]} 13. b3 {[%clk 0:02:50]}  O-O {[%clk 0:02:54]} 14. Rcd1 {[%clk 0:02:49]}  Rfd8 {[%clk 0:02:52]} 15. e5 {[%clk 0:02:41]}  Ne8 {[%clk 0:02:37]} 16. Bxe7 {[%clk 0:02:38]}  Qxe7 {[%clk 0:02:38]} 17. exd6 {[%clk 0:02:38]}  Nxd6 {[%clk 0:02:38]} 18. Qe5 {[%clk 0:02:37]}  f6 {[%clk 0:02:33]} 19. Qe3 {[%clk 0:02:34]}  e5 {[%clk 0:02:24]} 20. Nd5 {[%clk 0:02:33]}  Qf7 {[%clk 0:02:24]} 21. f4 {[%clk 0:02:26]}  Re8 {[%clk 0:02:17]} 22. fxe5 {[%clk 0:02:16]}  Rxe5 {[%clk 0:02:17]} 23. Qg3 {[%clk 0:02:16]}  Ne4 {[%clk 0:02:09]} 24. Qxe5 {[%clk 0:02:11]}  fxe5 {[%clk 0:02:09]} 25. Rxf7 {[%clk 0:02:12]}  Kxf7 {[%clk 0:02:09]} 26. Re1 {[%clk 0:02:12]}  Nf6 {[%clk 0:02:06]} 27. Rxe5 {[%clk 0:02:11]}  b5 {[%clk 0:02:02]} 28. cxb5 {[%clk 0:01:57]}  Rc1+ {[%clk 0:01:39]} 29. Kf2 {[%clk 0:01:53]}  Ng4+ {[%clk 0:01:39]} 0-1


[Site "https://www.chess.com"]

[Event "Titled Tuesday Blitz March 29 Late 2022"]
[White "Tsukerman, Julia"]
[Black "Qashashvili, Alexandre"]
[WhiteFideId "2621649"]
[BlackFideId "13600842"]
[WhiteElo "2128"]
[BlackElo "2316"]
[Result "0-1"]
[Round "04"]
[TimeControl "180+1"]
[Date "2022.03.30"]
[WhiteClock "0:01:11"]
[BlackClock "0:01:16"]

1. e4 {[%clk 0:02:56]}  c6 {[%clk 0:02:57]} 2. d4 {[%clk 0:02:55]}  d5 {[%clk 0:02:57]} 3. exd5 {[%clk 0:02:53]}  cxd5 {[%clk 0:02:58]} 4. Bd3 {[%clk 0:02:53]}  Nc6 {[%clk 0:02:59]} 5. c3 {[%clk 0:02:52]}  Nf6 {[%clk 0:03:00]} 6. h3 {[%clk 0:02:51]}  g6 {[%clk 0:02:59]} 7. Nf3 {[%clk 0:02:52]}  Bf5 {[%clk 0:02:58]} 8. O-O {[%clk 0:02:52]}  Bxd3 {[%clk 0:02:56]} 9. Qxd3 {[%clk 0:02:51]}  Bg7 {[%clk 0:02:57]} 10. Re1 {[%clk 0:02:51]}  e6 {[%clk 0:02:57]} 11. Bf4 {[%clk 0:02:51]}  O-O {[%clk 0:02:56]} 12. Nbd2 {[%clk 0:02:52]}  Rc8 {[%clk 0:02:55]} 13. Ne5 {[%clk 0:02:51]}  Nxe5 {[%clk 0:02:54]} 14. Bxe5 {[%clk 0:02:50]}  Nd7 {[%clk 0:02:51]} 15. Bxg7 {[%clk 0:02:50]}  Kxg7 {[%clk 0:02:51]} 16. Nf3 {[%clk 0:02:51]}  Qc7 {[%clk 0:02:50]} 17. Ne5 {[%clk 0:02:50]}  Nxe5 {[%clk 0:02:49]} 18. Rxe5 {[%clk 0:02:50]}  Qc4 {[%clk 0:02:46]} 19. Qxc4 {[%clk 0:02:49]}  Rxc4 {[%clk 0:02:44]} 20. Rae1 {[%clk 0:02:49]}  b5 {[%clk 0:02:43]} 21. R5e2 {[%clk 0:02:45]}  b4 {[%clk 0:02:41]} 22. Re3 {[%clk 0:02:37]}  Rfc8 {[%clk 0:02:38]} 23. cxb4 {[%clk 0:02:32]}  Rxb4 {[%clk 0:02:31]} 24. Ra3 {[%clk 0:02:13]}  Rxb2 {[%clk 0:02:17]} 25. Rxa7 {[%clk 0:01:58]}  Rcc2 {[%clk 0:02:16]} 26. Rf1 {[%clk 0:01:57]}  Rxa2 {[%clk 0:02:17]} 27. Rxa2 {[%clk 0:01:55]}  Rxa2 {[%clk 0:02:17]} 28. Rd1 {[%clk 0:01:56]}  f5 {[%clk 0:02:15]} 29. g3 {[%clk 0:01:56]}  Kf6 {[%clk 0:02:15]} 30. Kg2 {[%clk 0:01:56]}  g5 {[%clk 0:02:14]} 31. Kf3 {[%clk 0:01:57]}  h5 {[%clk 0:02:08]} 32. Rd3 {[%clk 0:01:50]}  Rb2 {[%clk 0:02:00]} 33. Rd1 {[%clk 0:01:41]}  Rb3+ {[%clk 0:01:57]} 34. Kg2 {[%clk 0:01:37]}  Rc3 {[%clk 0:01:56]} 35. Rd2 {[%clk 0:01:29]}  g4 {[%clk 0:01:55]} 36. hxg4 {[%clk 0:01:29]}  fxg4 {[%clk 0:01:55]} 37. Rd1 {[%clk 0:01:29]}  Kf5 {[%clk 0:01:54]} 38. Re1 {[%clk 0:01:27]}  Rd3 {[%clk 0:01:46]} 39. Re5+ {[%clk 0:01:27]}  Kf6 {[%clk 0:01:46]} 40. Rxh5 {[%clk 0:01:26]}  Rxd4 {[%clk 0:01:47]} 41. Rh6+ {[%clk 0:01:26]}  Kf5 {[%clk 0:01:45]} 42. Rh5+ {[%clk 0:01:27]}  Kg6 {[%clk 0:01:32]} 43. Re5 {[%clk 0:01:26]}  Kf6 {[%clk 0:01:31]} 44. Re3 {[%clk 0:01:21]}  e5 {[%clk 0:01:30]} 45. f3 {[%clk 0:01:19]}  Rd2+ {[%clk 0:01:30]} 46. Kf1 {[%clk 0:01:19]}  gxf3 {[%clk 0:01:30]} 47. Rxf3+ {[%clk 0:01:20]}  Kg5 {[%clk 0:01:29]} 48. Re3 {[%clk 0:01:19]}  e4 {[%clk 0:01:27]} 49. Ke1 {[%clk 0:01:18]}  Ra2 {[%clk 0:01:24]} 50. Kf1 {[%clk 0:01:17]}  Kf5 {[%clk 0:01:23]} 51. Ke1 {[%clk 0:01:17]}  d4 {[%clk 0:01:21]} 52. Rb3 {[%clk 0:01:14]}  e3 {[%clk 0:01:20]} 53. Rd3 {[%clk 0:01:11]}  Ke4 {[%clk 0:01:19]} 54. Rd1 {[%clk 0:01:11]}  Rg2 {[%clk 0:01:16]} 0-1


[Site "https://www.chess.com"]

[Event "Titled Tuesday Blitz March 29 Late 2022"]
[White "Vasquez Schroeder, Rodrigo"]
[Black "Papasimakopoulos, Alexandros"]
[WhiteFideId "3400042"]
[BlackFideId "4244125"]
[WhiteElo "2561"]
[BlackElo "2340"]
[Result "1-0"]
[Round "04"]
[TimeControl "180+1"]
[Date "2022.03.29"]
[WhiteClock "0:00:51"]
[BlackClock "0:00:33"]

1. e4 {[%clk 0:03:00]}  e6 {[%clk 0:02:59]} 2. d4 {[%clk 0:03:00]}  d5 {[%clk 0:03:00]} 3. Nc3 {[%clk 0:03:01]}  Bb4 {[%clk 0:02:59]} 4. e5 {[%clk 0:03:01]}  b6 {[%clk 0:02:59]} 5. Bd2 {[%clk 0:03:00]}  Ne7 {[%clk 0:02:59]} 6. Nf3 {[%clk 0:02:58]}  Bxc3 {[%clk 0:02:58]} 7. Bxc3 {[%clk 0:02:57]}  Ba6 {[%clk 0:02:59]} 8. Bxa6 {[%clk 0:02:50]}  Nxa6 {[%clk 0:03:00]} 9. Qd3 {[%clk 0:02:50]}  Nb8 {[%clk 0:02:58]} 10. Bb4 {[%clk 0:02:49]}  Nf5 {[%clk 0:02:50]} 11. O-O {[%clk 0:02:40]}  Nd7 {[%clk 0:02:50]} 12. Bd2 {[%clk 0:02:36]}  h6 {[%clk 0:02:49]} 13. g3 {[%clk 0:02:35]}  c5 {[%clk 0:02:48]} 14. c3 {[%clk 0:02:34]}  Nb8 {[%clk 0:02:48]} 15. b4 {[%clk 0:02:34]}  O-O {[%clk 0:02:39]} 16. h4 {[%clk 0:02:31]}  Nc6 {[%clk 0:02:36]} 17. Kg2 {[%clk 0:02:30]}  cxd4 {[%clk 0:02:31]} 18. cxd4 {[%clk 0:02:30]}  Rc8 {[%clk 0:02:30]} 19. Rac1 {[%clk 0:02:27]}  Qe7 {[%clk 0:02:29]} 20. a3 {[%clk 0:02:26]}  Rc7 {[%clk 0:02:22]} 21. b5 {[%clk 0:02:25]}  Na5 {[%clk 0:02:19]} 22. Bb4 {[%clk 0:02:24]}  Qd7 {[%clk 0:02:13]} 23. Bxf8 {[%clk 0:02:24]}  Kxf8 {[%clk 0:02:14]} 24. g4 {[%clk 0:02:21]}  Ne7 {[%clk 0:02:09]} 25. Nd2 {[%clk 0:02:17]}  Ng6 {[%clk 0:02:07]} 26. Qg3 {[%clk 0:02:07]}  Nc4 {[%clk 0:02:05]} 27. Nxc4 {[%clk 0:02:02]}  dxc4 {[%clk 0:02:06]} 28. h5 {[%clk 0:02:02]}  Ne7 {[%clk 0:02:05]} 29. a4 {[%clk 0:02:00]}  Qxd4 {[%clk 0:02:02]} 30. Rfd1 {[%clk 0:01:55]}  Qe4+ {[%clk 0:02:02]} 31. Qf3 {[%clk 0:01:51]}  Qxf3+ {[%clk 0:02:01]} 32. Kxf3 {[%clk 0:01:52]}  Nd5 {[%clk 0:02:02]} 33. Ke4 {[%clk 0:01:52]}  Rc5 {[%clk 0:01:59]} 34. Rd4 {[%clk 0:01:49]}  c3 {[%clk 0:01:56]} 35. Kd3 {[%clk 0:01:45]}  Ke7 {[%clk 0:01:55]} 36. Rc4 {[%clk 0:01:46]}  Rxc4 {[%clk 0:01:44]} 37. Kxc4 {[%clk 0:01:46]}  f6 {[%clk 0:01:44]} 38. Kd4 {[%clk 0:01:42]}  Nf4 {[%clk 0:01:40]} 39. Rc2 {[%clk 0:01:31]}  Nd5 {[%clk 0:01:39]} 40. Ke4 {[%clk 0:01:30]}  Kd7 {[%clk 0:01:34]} 41. f4 {[%clk 0:01:28]}  Ke7 {[%clk 0:01:34]} 42. f5 {[%clk 0:01:26]}  Kd7 {[%clk 0:01:29]} 43. Kd4 {[%clk 0:01:25]}  Ke7 {[%clk 0:01:24]} 44. Re2 {[%clk 0:01:24]}  Nf4 {[%clk 0:01:13]} 45. exf6+ {[%clk 0:01:19]}  Kxf6 {[%clk 0:01:10]} 46. Rf2 {[%clk 0:01:19]}  Kg5 {[%clk 0:00:53]} 47. fxe6 {[%clk 0:01:08]}  Nxe6+ {[%clk 0:00:54]} 48. Kxc3 {[%clk 0:01:08]}  Nc5 {[%clk 0:00:54]} 49. Rf7 {[%clk 0:01:05]}  g6 {[%clk 0:00:49]} 50. Rg7 {[%clk 0:01:03]}  Kxg4 {[%clk 0:00:48]} 51. hxg6 {[%clk 0:01:03]}  Kg5 {[%clk 0:00:45]} 52. a5 {[%clk 0:01:00]}  bxa5 {[%clk 0:00:40]} 53. Rxa7 {[%clk 0:01:00]}  Kxg6 {[%clk 0:00:40]} 54. Kc4 {[%clk 0:00:56]}  Na4 {[%clk 0:00:38]} 55. Ra6+ {[%clk 0:00:54]}  Kf5 {[%clk 0:00:36]} 56. Rxh6 {[%clk 0:00:53]}  Nb2+ {[%clk 0:00:33]} 57. Kc3 {[%clk 0:00:51]}  Na4+ {[%clk 0:00:33]} 58. Kd4 {[%clk 0:00:51]} 1-0


[Site "https://www.chess.com"]

[Event "Titled Tuesday Blitz March 29 Late 2022"]
[White "Vine, Elzbieta"]
[Black "Sanchez, Robert"]
[WhiteFideId "1119320"]
[BlackFideId "2034360"]
[WhiteElo "1837"]
[BlackElo "2284"]
[Result "0-1"]
[Round "04"]
[TimeControl "180+1"]
[Date "2022.03.30"]
[WhiteClock "0:00:05"]
[BlackClock "0:01:04"]

1. e4 {[%clk 0:03:00]}  e6 {[%clk 0:02:58]} 2. d4 {[%clk 0:03:00]}  d5 {[%clk 0:02:58]} 3. e5 {[%clk 0:02:58]}  c5 {[%clk 0:02:58]} 4. c3 {[%clk 0:02:58]}  Nc6 {[%clk 0:02:59]} 5. Be3 {[%clk 0:02:57]}  Nge7 {[%clk 0:02:50]} 6. f4 {[%clk 0:02:48]}  Nf5 {[%clk 0:02:50]} 7. Bf2 {[%clk 0:02:47]}  cxd4 {[%clk 0:02:50]} 8. cxd4 {[%clk 0:02:46]}  Qb6 {[%clk 0:02:51]} 9. Nf3 {[%clk 0:02:30]}  Qxb2 {[%clk 0:02:46]} 10. Nbd2 {[%clk 0:02:28]}  Bb4 {[%clk 0:02:41]} 11. Rb1 {[%clk 0:01:56]}  Qxa2 {[%clk 0:02:40]} 12. Rxb4 {[%clk 0:01:48]}  Nxb4 {[%clk 0:02:38]} 13. Bb5+ {[%clk 0:01:47]}  Nc6 {[%clk 0:02:38]} 14. O-O {[%clk 0:01:42]}  O-O {[%clk 0:02:37]} 15. g4 {[%clk 0:01:39]}  Nfe7 {[%clk 0:02:30]} 16. Bd3 {[%clk 0:01:28]}  Ng6 {[%clk 0:02:15]} 17. f5 {[%clk 0:01:16]}  Nf4 {[%clk 0:02:14]} 18. Bb1 {[%clk 0:01:02]}  Nh3+ {[%clk 0:02:10]} 19. Kg2 {[%clk 0:00:58]}  Nxf2 {[%clk 0:02:10]} 20. Rxf2 {[%clk 0:00:56]}  Qa3 {[%clk 0:01:57]} 21. Ng5 {[%clk 0:00:46]}  h6 {[%clk 0:01:35]} 22. Rf3 {[%clk 0:00:43]}  Qb2 {[%clk 0:01:29]} 23. Rh3 {[%clk 0:00:31]}  hxg5 {[%clk 0:01:22]} 24. f6 {[%clk 0:00:26]}  g6 {[%clk 0:01:22]} 25. Rb3 {[%clk 0:00:14]}  Qxd4 {[%clk 0:01:21]} 26. Qf3 {[%clk 0:00:10]}  Qxd2+ {[%clk 0:01:16]} 27. Kg3 {[%clk 0:00:05]}  Nxe5 {[%clk 0:01:04]} 0-1


[Site "https://www.chess.com"]